[Event "Titled Tuesday Blitz March 01 Early 2022"]
[White "Murzin, Volodar"]
[Black "Mikhalsky, Vladimir"]
[WhiteFideId "44155573"]
[BlackFideId "14144352"]
[WhiteElo "2585"]
[BlackElo "2248"]
[Result "1-0"]
[Round "01"]
[TimeControl "180+1"]
[Date "2022.03.01"]
[WhiteClock "0:00:17"]
[BlackClock "0:00:04"]

1. e4 {[%clk 0:02:56]}  g6 {[%clk 0:02:59]} 2. Nf3 {[%clk 0:02:56]}  Bg7 {[%clk 0:02:57]} 3. d4 {[%clk 0:02:56]}  d6 {[%clk 0:02:56]} 4. Bc4 {[%clk 0:02:55]}  e6 {[%clk 0:02:55]} 5. O-O {[%clk 0:02:55]}  Ne7 {[%clk 0:02:55]} 6. Nbd2 {[%clk 0:02:49]}  O-O {[%clk 0:02:54]} 7. c3 {[%clk 0:02:47]}  b6 {[%clk 0:02:51]} 8. Re1 {[%clk 0:02:47]}  Bb7 {[%clk 0:02:49]} 9. a4 {[%clk 0:02:41]}  a6 {[%clk 0:02:49]} 10. Bd3 {[%clk 0:02:30]}  e5 {[%clk 0:02:46]} 11. Nc4 {[%clk 0:02:26]}  Nbc6 {[%clk 0:02:33]} 12. dxe5 {[%clk 0:02:02]}  dxe5 {[%clk 0:02:29]} 13. Qe2 {[%clk 0:02:02]}  h6 {[%clk 0:02:22]} 14. Be3 {[%clk 0:01:59]}  Qc8 {[%clk 0:02:22]} 15. Rad1 {[%clk 0:01:57]}  Rd8 {[%clk 0:02:12]} 16. h3 {[%clk 0:01:49]}  Kh7 {[%clk 0:02:11]} 17. Bc2 {[%clk 0:01:43]}  Ng8 {[%clk 0:02:05]} 18. Bc1 {[%clk 0:01:23]}  a5 {[%clk 0:01:57]} 19. Ne3 {[%clk 0:01:13]}  Ba6 {[%clk 0:01:53]} 20. Bd3 {[%clk 0:01:12]}  Bxd3 {[%clk 0:01:49]} 21. Rxd3 {[%clk 0:01:13]}  Rxd3 {[%clk 0:01:47]} 22. Qxd3 {[%clk 0:01:12]}  Qd8 {[%clk 0:01:45]} 23. Qc4 {[%clk 0:01:04]}  Qe8 {[%clk 0:01:36]} 24. Nd5 {[%clk 0:01:02]}  Rc8 {[%clk 0:01:34]} 25. Nh2 {[%clk 0:00:30]}  Nf6 {[%clk 0:01:24]} 26. Be3 {[%clk 0:00:21]}  h5 {[%clk 0:01:05]} 27. Nf3 {[%clk 0:00:20]}  Nd8 {[%clk 0:00:38]} 28. Ng5+ {[%clk 0:00:17]}  Kg8 {[%clk 0:00:38]} 29. Nxb6 {[%clk 0:00:17]}  Rb8 {[%clk 0:00:17]} 30. Qxc7 {[%clk 0:00:16]}  Rb7 {[%clk 0:00:18]} 31. Qc8 {[%clk 0:00:16]}  Nh7 {[%clk 0:00:12]} 32. Rd1 {[%clk 0:00:14]}  Bf6 {[%clk 0:00:09]} 33. Nxh7 {[%clk 0:00:14]}  Kxh7 {[%clk 0:00:09]} 34. Rxd8 {[%clk 0:00:15]}  Qxd8 {[%clk 0:00:08]} 35. Qxb7 {[%clk 0:00:15]}  Qd1+ {[%clk 0:00:07]} 36. Kh2 {[%clk 0:00:16]}  Kg7 {[%clk 0:00:07]} 37. Qd5 {[%clk 0:00:17]}  Qe2 {[%clk 0:00:06]} 38. Nd7 {[%clk 0:00:17]}  Bh4 {[%clk 0:00:05]} 39. Qxe5+ {[%clk 0:00:17]}  Kh7 {[%clk 0:00:04]} 40. Qf4 {[%clk 0:00:17]} 1-0


[Site "https://www.chess.com"]

[Event "Titled Tuesday Blitz March 01 Early 2022"]
[White "Ohanyan, Emin"]
[Black "Buscar, Michael"]
[WhiteFideId "13312022"]
[BlackFideId "2603616"]
[WhiteElo "1809"]
[BlackElo "2010"]
[Result "1-0"]
[Round "01"]
[TimeControl "180+1"]
[Date "2022.03.01"]
[WhiteClock "0:01:05"]
[BlackClock "0:00:56"]

1. e4 {[%clk 0:02:54]}  c5 {[%clk 0:03:00]} 2. Nf3 {[%clk 0:02:54]}  f6 {[%clk 0:02:59]} 3. d4 {[%clk 0:02:36]}  cxd4 {[%clk 0:02:58]} 4. Nxd4 {[%clk 0:02:37]}  e5 {[%clk 0:02:48]} 5. Nb5 {[%clk 0:02:35]}  Nc6 {[%clk 0:02:35]} 6. Nd6+ {[%clk 0:02:32]}  Bxd6 {[%clk 0:02:35]} 7. Qxd6 {[%clk 0:02:33]}  Qe7 {[%clk 0:02:35]} 8. Qxe7+ {[%clk 0:02:27]}  Ngxe7 {[%clk 0:02:35]} 9. Nc3 {[%clk 0:02:26]}  Nd4 {[%clk 0:02:30]} 10. Bd3 {[%clk 0:02:11]}  f5 {[%clk 0:02:28]} 11. Be3 {[%clk 0:01:58]}  Nec6 {[%clk 0:01:59]} 12. Nd5 {[%clk 0:01:56]}  O-O {[%clk 0:01:53]} 13. c3 {[%clk 0:01:53]}  f4 {[%clk 0:01:49]} 14. Nxf4 {[%clk 0:01:30]}  exf4 {[%clk 0:01:37]} 15. Bxd4 {[%clk 0:01:30]}  Nxd4 {[%clk 0:01:33]} 16. cxd4 {[%clk 0:01:31]}  f3 {[%clk 0:01:31]} 17. g3 {[%clk 0:01:28]}  d6 {[%clk 0:01:26]} 18. Kd2 {[%clk 0:01:26]}  Bh3 {[%clk 0:01:24]} 19. Rhc1 {[%clk 0:01:24]}  Rfc8 {[%clk 0:01:24]} 20. Rxc8+ {[%clk 0:01:21]}  Rxc8 {[%clk 0:01:23]} 21. Rc1 {[%clk 0:01:22]}  g5 {[%clk 0:01:18]} 22. Rxc8+ {[%clk 0:01:17]}  Bxc8 {[%clk 0:01:19]} 23. Ke3 {[%clk 0:01:18]}  g4 {[%clk 0:01:16]} 24. Kf4 {[%clk 0:01:12]}  Kf7 {[%clk 0:01:12]} 25. e5 {[%clk 0:01:12]}  Be6 {[%clk 0:01:05]} 26. a3 {[%clk 0:01:05]}  dxe5+ {[%clk 0:01:04]} 27. Kxe5 {[%clk 0:01:05]}  h5 {[%clk 0:01:01]} 28. d5 {[%clk 0:01:05]}  Bd7 {[%clk 0:01:00]} 29. Kd6 {[%clk 0:01:06]}  Ba4 {[%clk 0:00:56]} 30. Kc7 {[%clk 0:01:05]} 1-0


[Site "https://www.chess.com"]

[Event "Titled Tuesday Blitz March 01 Early 2022"]
[White "Osmonbekov, Talaibek"]
[Black "Gelman, Alexander"]
[WhiteFideId "2017253"]
[BlackFideId "4118316"]
[WhiteElo "2135"]
[BlackElo "2375"]
[Result "0-1"]
[Round "01"]
[TimeControl "180+1"]
[Date "2022.03.01"]
[WhiteClock "0:00:03"]
[BlackClock "0:00:08"]

1. d4 {[%clk 0:02:59]}  Nf6 {[%clk 0:02:59]} 2. Nc3 {[%clk 0:02:55]}  d5 {[%clk 0:02:58]} 3. Bf4 {[%clk 0:02:55]}  a6 {[%clk 0:02:56]} 4. e3 {[%clk 0:02:55]}  b5 {[%clk 0:02:54]} 5. Nf3 {[%clk 0:02:55]}  Bb7 {[%clk 0:02:52]} 6. Bd3 {[%clk 0:02:51]}  e6 {[%clk 0:02:51]} 7. O-O {[%clk 0:02:50]}  c5 {[%clk 0:02:45]} 8. dxc5 {[%clk 0:02:49]}  Bxc5 {[%clk 0:02:45]} 9. Re1 {[%clk 0:02:35]}  Nc6 {[%clk 0:02:42]} 10. e4 {[%clk 0:02:34]}  Nb4 {[%clk 0:02:26]} 11. e5 {[%clk 0:02:26]}  Nd7 {[%clk 0:02:24]} 12. Be3 {[%clk 0:02:17]}  h6 {[%clk 0:02:06]} 13. a3 {[%clk 0:02:04]}  Nc6 {[%clk 0:01:58]} 14. Bxc5 {[%clk 0:01:43]}  Nxc5 {[%clk 0:01:58]} 15. Ne2 {[%clk 0:01:44]}  O-O {[%clk 0:01:49]} 16. Ned4 {[%clk 0:01:43]}  Rc8 {[%clk 0:01:39]} 17. c3 {[%clk 0:01:42]}  Nxd4 {[%clk 0:01:17]} 18. Nxd4 {[%clk 0:01:37]}  Qg5 {[%clk 0:01:13]} 19. Rc1 {[%clk 0:01:14]}  Ne4 {[%clk 0:01:10]} 20. f3 {[%clk 0:01:08]}  Nc5 {[%clk 0:01:07]} 21. Bb1 {[%clk 0:01:08]}  g6 {[%clk 0:00:45]} 22. Qe2 {[%clk 0:01:04]}  Nd7 {[%clk 0:00:29]} 23. g3 {[%clk 0:01:02]}  Qe7 {[%clk 0:00:21]} 24. Qe3 {[%clk 0:00:55]}  Kg7 {[%clk 0:00:21]} 25. h4 {[%clk 0:00:52]}  h5 {[%clk 0:00:20]} 26. Rcd1 {[%clk 0:00:42]}  Rh8 {[%clk 0:00:20]} 27. f4 {[%clk 0:00:36]}  Nc5 {[%clk 0:00:19]} 28. Qf3 {[%clk 0:00:30]}  Ne4 {[%clk 0:00:19]} 29. Rf1 {[%clk 0:00:20]}  Qc5 {[%clk 0:00:15]} 30. Kh2 {[%clk 0:00:18]}  Rce8 {[%clk 0:00:12]} 31. Bd3 {[%clk 0:00:16]}  Bc8 {[%clk 0:00:09]} 32. Bxe4 {[%clk 0:00:15]}  dxe4 {[%clk 0:00:10]} 33. Qxe4 {[%clk 0:00:16]}  Qc7 {[%clk 0:00:10]} 34. f5 {[%clk 0:00:11]}  exf5 {[%clk 0:00:10]} 35. Qf4 {[%clk 0:00:05]}  Qxe5 {[%clk 0:00:10]} 36. Rfe1 {[%clk 0:00:03]}  Qxf4 {[%clk 0:00:10]} 37. gxf4 {[%clk 0:00:03]}  Bb7 {[%clk 0:00:10]} 38. Kg3 {[%clk 0:00:03]}  Re4 {[%clk 0:00:09]} 39. Nf3 {[%clk 0:00:03]}  Rhe8 {[%clk 0:00:08]} 40. Ne5 {[%clk 0:00:03]}  Re7 {[%clk 0:00:08]} 0-1


[Site "https://www.chess.com"]

[Event "Titled Tuesday Blitz March 01 Early 2022"]
[White "P., Komal Kishore"]
[Black "Wachinger, Guenther"]
[WhiteFideId "5016703"]
[BlackFideId "4604261"]
[WhiteElo "2056"]
[BlackElo "2212"]
[Result "1-0"]
[Round "01"]
[TimeControl "180+1"]
[Date "2022.03.01"]
[WhiteClock "0:00:05"]
[BlackClock "0:00:50"]

1. e4 {[%clk 0:03:00]}  c5 {[%clk 0:02:59]} 2. Nf3 {[%clk 0:03:00]}  d6 {[%clk 0:03:00]} 3. Bb5+ {[%clk 0:02:59]}  Bd7 {[%clk 0:02:57]} 4. Bxd7+ {[%clk 0:02:59]}  Nxd7 {[%clk 0:02:57]} 5. O-O {[%clk 0:02:57]}  Ngf6 {[%clk 0:02:55]} 6. Qe2 {[%clk 0:02:57]}  e6 {[%clk 0:02:55]} 7. c3 {[%clk 0:02:53]}  Be7 {[%clk 0:02:55]} 8. d4 {[%clk 0:02:52]}  cxd4 {[%clk 0:02:55]} 9. cxd4 {[%clk 0:02:52]}  d5 {[%clk 0:02:56]} 10. e5 {[%clk 0:02:51]}  Ne4 {[%clk 0:02:56]} 11. Nc3 {[%clk 0:02:42]}  Nxc3 {[%clk 0:02:55]} 12. bxc3 {[%clk 0:02:41]}  Rc8 {[%clk 0:02:56]} 13. Rb1 {[%clk 0:02:33]}  Qc7 {[%clk 0:02:52]} 14. Bg5 {[%clk 0:02:19]}  Nb6 {[%clk 0:02:47]} 15. Bxe7 {[%clk 0:02:13]}  Qxe7 {[%clk 0:02:48]} 16. Rfc1 {[%clk 0:01:56]}  O-O {[%clk 0:02:45]} 17. h4 {[%clk 0:01:38]}  Rc7 {[%clk 0:02:43]} 18. Qd3 {[%clk 0:01:31]}  Rfc8 {[%clk 0:02:42]} 19. Ng5 {[%clk 0:01:30]}  g6 {[%clk 0:02:42]} 20. Rb3 {[%clk 0:01:23]}  Nc4 {[%clk 0:02:28]} 21. Rcb1 {[%clk 0:01:17]}  a5 {[%clk 0:02:27]} 22. a4 {[%clk 0:01:06]}  Qd7 {[%clk 0:02:21]} 23. h5 {[%clk 0:00:51]}  Qxa4 {[%clk 0:01:37]} 24. h6 {[%clk 0:00:30]}  Qd7 {[%clk 0:01:32]} 25. Qf3 {[%clk 0:00:26]}  Qd8 {[%clk 0:01:12]} 26. Rxb7 {[%clk 0:00:23]}  a4 {[%clk 0:01:11]} 27. Rxc7 {[%clk 0:00:14]}  Rxc7 {[%clk 0:01:12]} 28. Qf6 {[%clk 0:00:07]}  Qf8 {[%clk 0:00:50]} 29. Rb8 {[%clk 0:00:06]}  Rc8 {[%clk 0:00:50]} 30. Rxc8 {[%clk 0:00:05]} 1-0


[Site "https://www.chess.com"]

[Event "Titled Tuesday Blitz March 01 Early 2022"]
[White "Peatman, Carter"]
[Black "Madaminov, Mukhiddin"]
[WhiteFideId "2096480"]
[BlackFideId "14210703"]
[WhiteElo "2293"]
[BlackElo "1916"]
[Result "0-1"]
[Round "01"]
[TimeControl "180+1"]
[Date "2022.03.01"]
[WhiteClock "0:00:04"]
[BlackClock "0:00:15"]

1. d4 {[%clk 0:02:58]}  Nf6 {[%clk 0:02:59]} 2. Nf3 {[%clk 0:02:57]}  d5 {[%clk 0:02:59]} 3. Bf4 {[%clk 0:02:57]}  c5 {[%clk 0:02:59]} 4. e3 {[%clk 0:02:56]}  Nc6 {[%clk 0:02:59]} 5. c3 {[%clk 0:02:53]}  Qb6 {[%clk 0:02:59]} 6. dxc5 {[%clk 0:02:40]}  Qxb2 {[%clk 0:02:58]} 7. Nbd2 {[%clk 0:02:40]}  Qxc3 {[%clk 0:02:56]} 8. Rc1 {[%clk 0:02:40]}  Qa5 {[%clk 0:02:55]} 9. Qb3 {[%clk 0:02:06]}  e6 {[%clk 0:02:39]} 10. Bb5 {[%clk 0:02:06]}  Bd7 {[%clk 0:02:37]} 11. O-O {[%clk 0:02:04]}  Be7 {[%clk 0:02:28]} 12. h3 {[%clk 0:01:57]}  O-O {[%clk 0:02:27]} 13. Rfd1 {[%clk 0:01:57]}  Rac8 {[%clk 0:02:10]} 14. Bh2 {[%clk 0:00:53]}  a6 {[%clk 0:01:44]} 15. Be2 {[%clk 0:00:41]}  Nd8 {[%clk 0:01:22]} 16. Bd6 {[%clk 0:00:17]}  Re8 {[%clk 0:00:37]} 17. Ne5 {[%clk 0:00:18]}  Ba4 {[%clk 0:00:35]} 18. Qa3 {[%clk 0:00:16]}  b5 {[%clk 0:00:19]} 19. cxb6 {[%clk 0:00:09]}  Bxd6 {[%clk 0:00:19]} 20. Qxd6 {[%clk 0:00:07]}  Rxc1 {[%clk 0:00:19]} 21. Rxc1 {[%clk 0:00:07]}  Qxd2 {[%clk 0:00:20]} 22. Rb1 {[%clk 0:00:04]}  Qxe2 {[%clk 0:00:15]} 23. b7 {[%clk 0:00:04]}  Nxb7 {[%clk 0:00:13]} 24. Rxb7 {[%clk 0:00:05]}  Rf8 {[%clk 0:00:07]} 25. Qe7 {[%clk 0:00:04]}  Be8 {[%clk 0:00:06]} 26. Nf3 {[%clk 0:00:03]}  Ne4 {[%clk 0:00:06]} 27. Qh4 {[%clk 0:00:02]}  h6 {[%clk 0:00:06]} 28. Ne5 {[%clk 0:00:02]}  Qe1+ {[%clk 0:00:06]} 29. Kh2 {[%clk 0:00:02]}  Qxf2 {[%clk 0:00:07]} 30. Nf3 {[%clk 0:00:02]}  Qxh4 {[%clk 0:00:07]} 31. Nxh4 {[%clk 0:00:02]}  a5 {[%clk 0:00:08]} 32. Nf3 {[%clk 0:00:03]}  a4 {[%clk 0:00:09]} 33. Nd4 {[%clk 0:00:04]}  Nc3 {[%clk 0:00:10]} 34. a3 {[%clk 0:00:03]}  e5 {[%clk 0:00:10]} 35. Nf5 {[%clk 0:00:03]}  Ne4 {[%clk 0:00:10]} 36. Ne7+ {[%clk 0:00:04]}  Kh7 {[%clk 0:00:11]} 37. Nxd5 {[%clk 0:00:04]}  Bc6 {[%clk 0:00:11]} 38. Nf6+ {[%clk 0:00:01]}  Nxf6 {[%clk 0:00:11]} 39. Rb6 {[%clk 0:00:02]}  Bd5 {[%clk 0:00:11]} 40. Ra6 {[%clk 0:00:02]}  Bb3 {[%clk 0:00:12]} 41. Ra5 {[%clk 0:00:02]}  e4 {[%clk 0:00:13]} 42. Re5 {[%clk 0:00:03]}  Rd8 {[%clk 0:00:13]} 43. Re7 {[%clk 0:00:03]}  Rd3 {[%clk 0:00:14]} 44. Kg3 {[%clk 0:00:03]}  Rxe3+ {[%clk 0:00:14]} 45. Kf4 {[%clk 0:00:04]}  Nd5+ {[%clk 0:00:15]} 0-1


[Site "https://www.chess.com"]

[Event "Titled Tuesday Blitz March 01 Early 2022"]
[White "Piliczewski, Bogusz"]
[Black "Silva, Miguel Antonio Neto"]
[WhiteFideId "1104144"]
[BlackFideId "1911929"]
[WhiteElo "1896"]
[BlackElo "2204"]
[Result "0-1"]
[Round "01"]
[TimeControl "180+1"]
[Date "2022.03.01"]
[WhiteClock "0:01:48"]
[BlackClock "0:01:17"]

1. d4 {[%clk 0:02:59]}  Nf6 {[%clk 0:02:57]} 2. Nf3 {[%clk 0:02:59]}  d5 {[%clk 0:02:51]} 3. Bf4 {[%clk 0:02:59]}  c5 {[%clk 0:02:49]} 4. c3 {[%clk 0:02:58]}  Nc6 {[%clk 0:02:48]} 5. e3 {[%clk 0:02:59]}  Qb6 {[%clk 0:02:42]} 6. Qb3 {[%clk 0:02:58]}  c4 {[%clk 0:02:41]} 7. Qxb6 {[%clk 0:02:57]}  axb6 {[%clk 0:02:39]} 8. Nbd2 {[%clk 0:02:56]}  Bf5 {[%clk 0:02:31]} 9. a3 {[%clk 0:02:55]}  e6 {[%clk 0:02:29]} 10. Be2 {[%clk 0:02:55]}  b5 {[%clk 0:02:28]} 11. h3 {[%clk 0:02:53]}  b4 {[%clk 0:02:26]} 12. cxb4 {[%clk 0:02:54]}  Bxb4 {[%clk 0:02:22]} 13. O-O {[%clk 0:02:48]}  Be7 {[%clk 0:02:22]} 14. Rac1 {[%clk 0:02:44]}  h6 {[%clk 0:02:19]} 15. Ne5 {[%clk 0:02:43]}  Nxe5 {[%clk 0:02:15]} 16. Bxe5 {[%clk 0:02:41]}  O-O {[%clk 0:02:13]} 17. f3 {[%clk 0:02:40]}  b5 {[%clk 0:02:05]} 18. Rfe1 {[%clk 0:02:39]}  b4 {[%clk 0:02:03]} 19. axb4 {[%clk 0:02:38]}  Bxb4 {[%clk 0:02:03]} 20. Nb1 {[%clk 0:02:32]}  Bxe1 {[%clk 0:02:00]} 21. Rxe1 {[%clk 0:02:33]}  Ra2 {[%clk 0:02:00]} 22. g4 {[%clk 0:02:19]}  Bg6 {[%clk 0:01:55]} 23. Nd2 {[%clk 0:02:08]}  Rxb2 {[%clk 0:01:51]} 24. Nf1 {[%clk 0:02:08]}  Rc8 {[%clk 0:01:45]} 25. f4 {[%clk 0:02:05]}  c3 {[%clk 0:01:37]} 26. Bd1 {[%clk 0:02:05]}  c2 {[%clk 0:01:35]} 27. Bxc2 {[%clk 0:02:05]}  Rcxc2 {[%clk 0:01:35]} 28. f5 {[%clk 0:02:00]}  exf5 {[%clk 0:01:32]} 29. gxf5 {[%clk 0:01:59]}  Bxf5 {[%clk 0:01:32]} 30. Ng3 {[%clk 0:01:55]}  Rg2+ {[%clk 0:01:25]} 31. Kh1 {[%clk 0:01:56]}  Rh2+ {[%clk 0:01:25]} 32. Kg1 {[%clk 0:01:56]}  Rbg2+ {[%clk 0:01:24]} 33. Kf1 {[%clk 0:01:56]}  Bd3+ {[%clk 0:01:24]} 34. Ne2 {[%clk 0:01:55]}  Rxe2 {[%clk 0:01:24]} 35. Bxh2 {[%clk 0:01:53]}  Rxh2+ {[%clk 0:01:23]} 36. Kg1 {[%clk 0:01:54]}  Re2 {[%clk 0:01:19]} 37. Rd1 {[%clk 0:01:54]}  Be4 {[%clk 0:01:19]} 38. Ra1 {[%clk 0:01:52]}  Nh5 {[%clk 0:01:18]} 39. Ra8+ {[%clk 0:01:49]}  Kh7 {[%clk 0:01:18]} 40. Ra3 {[%clk 0:01:48]}  Ng3 {[%clk 0:01:17]} 0-1


[Site "https://www.chess.com"]

[Event "Titled Tuesday Blitz March 01 Early 2022"]
[White "Ponkratov, Pavel"]
[Black "Aldokhin, Ivan"]
[WhiteFideId "4157800"]
[BlackFideId "24115720"]
[WhiteElo "2487"]
[BlackElo "2231"]
[Result "1-0"]
[Round "01"]
[TimeControl "180+1"]
[Date "2022.03.01"]
[WhiteClock "0:01:17"]
[BlackClock "0:00:11"]

1. c4 {[%clk 0:02:29]}  Nf6 {[%clk 0:02:59]} 2. Nc3 {[%clk 0:02:29]}  g6 {[%clk 0:02:59]} 3. d4 {[%clk 0:02:29]}  d6 {[%clk 0:03:00]} 4. e4 {[%clk 0:02:29]}  Bg7 {[%clk 0:03:01]} 5. f4 {[%clk 0:02:30]}  O-O {[%clk 0:02:50]} 6. Nf3 {[%clk 0:02:30]}  Nc6 {[%clk 0:02:50]} 7. d5 {[%clk 0:02:29]}  Nb4 {[%clk 0:02:49]} 8. a3 {[%clk 0:02:27]}  Na6 {[%clk 0:02:49]} 9. Bd3 {[%clk 0:02:28]}  e6 {[%clk 0:02:49]} 10. O-O {[%clk 0:02:27]}  exd5 {[%clk 0:02:48]} 11. cxd5 {[%clk 0:02:27]}  Bg4 {[%clk 0:02:37]} 12. h3 {[%clk 0:02:24]}  Bxf3 {[%clk 0:02:35]} 13. Qxf3 {[%clk 0:02:24]}  Re8 {[%clk 0:02:08]} 14. Be3 {[%clk 0:02:22]}  Nd7 {[%clk 0:01:57]} 15. Rae1 {[%clk 0:02:21]}  Nac5 {[%clk 0:01:55]} 16. Bc2 {[%clk 0:02:20]}  a5 {[%clk 0:01:52]} 17. Bf2 {[%clk 0:02:01]}  a4 {[%clk 0:01:45]} 18. h4 {[%clk 0:02:00]}  Nb3 {[%clk 0:01:38]} 19. Qd1 {[%clk 0:01:57]}  Ndc5 {[%clk 0:01:26]} 20. h5 {[%clk 0:01:57]}  Qf6 {[%clk 0:01:19]} 21. hxg6 {[%clk 0:01:49]}  hxg6 {[%clk 0:01:19]} 22. e5 {[%clk 0:01:30]}  dxe5 {[%clk 0:01:07]} 23. fxe5 {[%clk 0:01:29]}  Qg5 {[%clk 0:00:43]} 24. Be3 {[%clk 0:01:26]}  Qh4 {[%clk 0:00:37]} 25. Rf4 {[%clk 0:01:21]}  Qg3 {[%clk 0:00:35]} 26. e6 {[%clk 0:01:19]}  fxe6 {[%clk 0:00:24]} 27. Rg4 {[%clk 0:01:19]}  Qd6 {[%clk 0:00:20]} 28. Rxg6 {[%clk 0:01:19]}  Qf8 {[%clk 0:00:15]} 29. Rf1 {[%clk 0:01:19]}  Qe7 {[%clk 0:00:11]} 30. Qh5 {[%clk 0:01:17]} 1-0


[Site "https://www.chess.com"]

[Event "Titled Tuesday Blitz March 01 Early 2022"]
[White "Prado Lobo, Jonas"]
[Black "Sadhwani, Raunak"]
[WhiteFideId "32050666"]
[BlackFideId "35093487"]
[WhiteElo "2199"]
[BlackElo "2616"]
[Result "0-1"]
[Round "01"]
[TimeControl "180+1"]
[Date "2022.03.01"]
[WhiteClock "0:00:12"]
[BlackClock "0:00:10"]

1. d4 {[%clk 0:03:00]}  Nf6 {[%clk 0:02:59]} 2. c4 {[%clk 0:03:00]}  g6 {[%clk 0:03:00]} 3. Nf3 {[%clk 0:02:56]}  Bg7 {[%clk 0:03:01]} 4. g3 {[%clk 0:02:57]}  O-O {[%clk 0:03:02]} 5. Bg2 {[%clk 0:02:57]}  c5 {[%clk 0:03:02]} 6. O-O {[%clk 0:02:57]}  cxd4 {[%clk 0:03:03]} 7. Nxd4 {[%clk 0:02:58]}  Nc6 {[%clk 0:03:04]} 8. Nc3 {[%clk 0:02:56]}  Qa5 {[%clk 0:03:04]} 9. Nb3 {[%clk 0:02:48]}  Qh5 {[%clk 0:03:04]} 10. h3 {[%clk 0:02:47]}  d6 {[%clk 0:03:01]} 11. g4 {[%clk 0:02:31]}  Bxg4 {[%clk 0:03:01]} 12. hxg4 {[%clk 0:02:31]}  Nxg4 {[%clk 0:03:02]} 13. Bf4 {[%clk 0:02:31]}  Be5 {[%clk 0:03:02]} 14. Qd2 {[%clk 0:02:20]}  g5 {[%clk 0:03:00]} 15. Bxe5 {[%clk 0:02:09]}  Ncxe5 {[%clk 0:02:38]} 16. Rfe1 {[%clk 0:01:56]}  Qh2+ {[%clk 0:02:35]} 17. Kf1 {[%clk 0:01:56]}  Qh4 {[%clk 0:02:36]} 18. Ne4 {[%clk 0:01:50]}  h6 {[%clk 0:02:37]} 19. Ng3 {[%clk 0:01:42]}  f5 {[%clk 0:02:35]} 20. Nd4 {[%clk 0:01:26]}  Nxf2 {[%clk 0:02:15]} 21. Ngxf5 {[%clk 0:01:16]}  Nfg4 {[%clk 0:02:09]} 22. e4 {[%clk 0:01:09]}  Rf6 {[%clk 0:01:23]} 23. Nf3 {[%clk 0:00:55]}  Nxf3 {[%clk 0:00:44]} 24. Bxf3 {[%clk 0:00:50]}  Qh3+ {[%clk 0:00:23]} 25. Bg2 {[%clk 0:00:36]}  Qg3 {[%clk 0:00:23]} 26. Qd5+ {[%clk 0:00:26]}  Kh8 {[%clk 0:00:19]} 27. Re2 {[%clk 0:00:18]}  e6 {[%clk 0:00:15]} 28. Qxb7 {[%clk 0:00:18]}  Rg8 {[%clk 0:00:12]} 29. Qe7 {[%clk 0:00:18]}  exf5 {[%clk 0:00:09]} 30. exf5 {[%clk 0:00:13]}  Rxf5+ {[%clk 0:00:10]} 31. Kg1 {[%clk 0:00:12]}  Qh2# {[%clk 0:00:10]} 0-1


[Site "https://www.chess.com"]

[Event "Titled Tuesday Blitz March 01 Early 2022"]
[White "Prohorov, Olexandr"]
[Black "Kadam, Om Manish"]
[WhiteFideId "14105578"]
[BlackFideId "45076294"]
[WhiteElo "1993"]
[BlackElo "1729"]
[Result "0-1"]
[Round "01"]
[TimeControl "180+1"]
[Date "2022.03.01"]
[WhiteClock "0:00:16"]
[BlackClock "0:00:23"]

1. e4 {[%clk 0:02:48]}  c6 {[%clk 0:02:57]} 2. d4 {[%clk 0:02:47]}  d5 {[%clk 0:02:58]} 3. e5 {[%clk 0:02:48]}  c5 {[%clk 0:02:57]} 4. dxc5 {[%clk 0:02:46]}  e6 {[%clk 0:02:58]} 5. Nf3 {[%clk 0:02:44]}  Bxc5 {[%clk 0:02:53]} 6. Nbd2 {[%clk 0:02:44]}  Ne7 {[%clk 0:02:53]} 7. Nb3 {[%clk 0:02:45]}  Bb6 {[%clk 0:02:53]} 8. Bb5+ {[%clk 0:02:45]}  Nbc6 {[%clk 0:02:53]} 9. O-O {[%clk 0:02:45]}  O-O {[%clk 0:02:53]} 10. Qe2 {[%clk 0:02:45]}  a6 {[%clk 0:02:53]} 11. Bd3 {[%clk 0:02:41]}  Nb4 {[%clk 0:02:53]} 12. Be3 {[%clk 0:02:40]}  Nxd3 {[%clk 0:02:50]} 13. cxd3 {[%clk 0:02:40]}  Bd7 {[%clk 0:02:45]} 14. Rfc1 {[%clk 0:02:34]}  Ba4 {[%clk 0:02:41]} 15. Nc5 {[%clk 0:02:30]}  Bc6 {[%clk 0:02:38]} 16. b4 {[%clk 0:02:25]}  Nf5 {[%clk 0:02:37]} 17. Nd4 {[%clk 0:02:08]}  Bxc5 {[%clk 0:02:28]} 18. bxc5 {[%clk 0:02:03]}  Nxd4 {[%clk 0:02:18]} 19. Bxd4 {[%clk 0:02:03]}  Qh4 {[%clk 0:02:19]} 20. Qe3 {[%clk 0:01:58]}  Rae8 {[%clk 0:02:18]} 21. f4 {[%clk 0:01:52]}  f5 {[%clk 0:02:12]} 22. Rab1 {[%clk 0:01:44]}  g5 {[%clk 0:02:10]} 23. Rf1 {[%clk 0:01:37]}  Re7 {[%clk 0:02:08]} 24. Rb6 {[%clk 0:01:32]}  Rg7 {[%clk 0:02:06]} 25. Rf3 {[%clk 0:01:26]}  Qg4 {[%clk 0:01:57]} 26. Rb1 {[%clk 0:01:02]}  h6 {[%clk 0:01:33]} 27. Rbf1 {[%clk 0:00:43]}  Qxg2+ {[%clk 0:01:15]} 28. Kxg2 {[%clk 0:00:41]}  gxf4+ {[%clk 0:01:16]} 29. Kf2 {[%clk 0:00:41]}  fxe3+ {[%clk 0:01:16]} 30. Bxe3 {[%clk 0:00:40]}  Kh7 {[%clk 0:01:16]} 31. d4 {[%clk 0:00:35]}  Rfg8 {[%clk 0:01:11]} 32. Rh3 {[%clk 0:00:35]}  Rg6 {[%clk 0:00:44]} 33. Rg3 {[%clk 0:00:34]}  Rxg3 {[%clk 0:00:35]} 34. hxg3 {[%clk 0:00:35]}  Kg6 {[%clk 0:00:34]} 35. Rh1 {[%clk 0:00:35]}  h5 {[%clk 0:00:34]} 36. Bf4 {[%clk 0:00:34]}  a5 {[%clk 0:00:34]} 37. Rb1 {[%clk 0:00:29]}  Ra8 {[%clk 0:00:34]} 38. Rb6 {[%clk 0:00:24]}  a4 {[%clk 0:00:34]} 39. a3 {[%clk 0:00:23]}  Rh8 {[%clk 0:00:26]} 40. Rb1 {[%clk 0:00:20]}  h4 {[%clk 0:00:26]} 41. gxh4 {[%clk 0:00:20]}  Rxh4 {[%clk 0:00:25]} 42. Rg1+ {[%clk 0:00:21]}  Kf7 {[%clk 0:00:26]} 43. Ke3 {[%clk 0:00:17]}  Rh3+ {[%clk 0:00:23]} 44. Rg3 {[%clk 0:00:16]}  Rh1 {[%clk 0:00:23]} 45. Bh6 {[%clk 0:00:16]}  Rxh6 {[%clk 0:00:23]} 0-1


[Site "https://www.chess.com"]